{"text_format":"1","workbook":"xlsx","n_sheets":1,"sheets":["Лист1"],"not_rendered":{"charts":0,"images":0,"macros":0,"external_links":0,"defined_names":1,"comments":0,"pivot_tables":0},"unopened":[],"bounds":{"document_bytes":16777216,"sheet_cells":100000,"rows_first":2000,"rows_last":500,"rows_between":2000,"halvings":0,"cell_chars":16384,"cell_head_chars":4096},"cells_cut":0,"cells_raw":0,"read":"whole","date_system":"1900"}

{"sheet":"Лист1","index":0,"n_rows":310,"n_cols":15,"rows_kept":310,"cut":false,"hidden":false,"merged":[[10,2,10,5],[13,0,14,0],[12,4,14,4],[12,5,14,5],[7,3,7,4],[9,0,9,4],[12,1,14,1],[12,2,14,2],[12,3,14,3]]}
[null,null,null,null,null,null,null,null,null,null,null,null,null,null,"Приложение № 2"]
[null,null,null,null,null,null,null,null,null,null,null,null,null,null,"к Закону Приднестровской Молдавской Республики"]
[null,null,null,null,null,null,null,null,null,null,null,null,null,null,"\"О внесении изменений и дополнений"]
[null,null,null,null,null,null,null,null,null,null,null,null,null,null,"в Закон Приднестровской Молдавской Республики"]
[null,null,null,null,null,null,null,null,null,null,null,null,null,null,"\"О республиканском бюджете на 2025 год\""]
[]
[]
[null,null,null,"Приложение № 2"]
[null,null,null,null,"к Закону Приднестровской Молдавской Республики"]
["\"О республиканском бюджете на 2025 год\""]
[null,null,"Расходы республиканского бюджета на 2025 год"]
[null,null,null,null,null,null,null,null,null,null,null,null,null,"(руб.)"]
["Код","Код пр-пол.","Наименование","действующая редакция ","предлагаемая редакция ","отклонение"]
["раздел, под-раздел"]
[]
["0100","","ГОСУДАРСТВЕННОЕ УПРАВЛЕНИЕ И МЕСТНОЕ САМОУПРАВЛЕНИЕ",258886707,258868707,{"$f":"E16-D16","v":-18000}]
["0101","","Функционирование главы государства – Президента ПМР",30384545,30384545,{"$f":"E17-D17","v":0}]
["","102","Администрация Президента ПМР",30384545,30384545,0]
["0102","","Функционирование органов законодательной государственной власти",43263852,43263852,0]
["","101","Верховный Совет ПМР",29607034,29607034,0]
["","103","Счетная палата ПМР",11621983,11621983,0]
["","148","Аппарат Уполномоченного по правам человека в ПМР",2034835,2034835,0]
["0103","","Функционирование исполнительных органов государственной власти",102389161,102371161,-18000]
["","109","Министерство экономического развития ПМР (аппарат)",25205604,25205604,0]
["","110","Министерство по социальной защите и труду ПМР (аппарат)",5859774,5859774,0]
["","113","Министерство здравоохранения  ПМР (аппарат)",8922247,8922247,0]
["","114","Министерство просвещения ПМР (аппарат)",7879258,7879258,0]
["","115","Министерство юстиции ПМР (аппарат)",8024314,8024314,0]
["","119","Министерство иностранных дел ПМР (аппарат)",7084238,7066238,-18000]
["","120","Министерство с/х и природных ресурсов ПМР (аппарат)",10416297,10416297,0]
["","140","ГС по спорту ПМР (аппарат)",1240344,1240344,0]
["","142","ГС по культуре  и историческому наследию ПМР (аппарат)",11850898,11850898,0]
["","145","ГС управления документацией и архивами ПМР (аппарат)",3212121,3212121,0]
["","146","ГС экологического контроля и охраны окр. среды ПМР",5740658,5740658,0]
["","149","Фонд государственного резерва ПМР (аппарат)",920335,920335,0]
["","157","Министерство цифрового развития, связи и массовых коммуникаций ПМР",6033073,6033073,0]
["0104","","Деятельность финансовых и налоговых органов",46201213,46201213,0]
["","150","Министерство финансов ПМР",46201213,46201213,0]
["0105","","Прочие расходы на общегосударственное управление",17630394,17630394,0]
["","109","ГУ \"Агентство по туризму ПМР\"",1658242,1658242,0]
["","109","ГУ \"Единый аукционный центр\"",870411,870411,0]
["","115","Министерство юстиции (ГС РиН, УСЭ)",9958442,9958442,0]
["","120","Мин-во с/х и природных ресурсов (террит. управления)",5143299,5143299,0]
["0108","","Функционирование органов статистики",4529271,4529271,0]
["","109","Министерство экономического развития ПМР (территор. упр-я статистики)",4529271,4529271,0]
["0110","","Функционирование Правительства ПМР",14488271,14488271,0]
["","100","Правительство  ПМР",14488271,14488271,0]
["0200","","ОРГАНЫ СУДЕБНОЙ ВЛАСТИ",57645901,57645901,0]
["0201","","Конституционный суд",4966219,4966219,0]
["","125","Конституционный суд ПМР",4966219,4966219,0]
["0202","","Верховный суд",14146062,14146062,0]
["","106","Верховный суд ПМР",14146062,14146062,0]
["0203","","Судебные органы",31109357,31109357,0]
["","139","Судебный департамент при Верховном суде ПМР",31109357,31109357,0]
["0204","","Арбитражный суд",6683086,6683086,0]
["","107","Арбитражный суд ПМР",6683086,6683086,0]
["0210","","Органы судебной власти, не отн. к др. гр.",741177,741177,0]
["","139","Оплата труда адвокатов",741177,741177,0]
["0300","","МЕЖДУНАРОДНАЯ ДЕЯТЕЛЬНОСТЬ",4119534,4119534,0]
["0301","","Международное сотрудничество",4119534,4119534,0]
["","119","Министерство иностранных дел (представительства)",4119534,4119534,0]
["0400","","ГОСУДАРСТВЕННАЯ ОБОРОНА",299805634,299805634,0]
["0401","","Государственная армия",252740610,252740610,0]
["","116","Министерство обороны ПМР",252740610,252740610,0]
["0402","","Миротворческие силы",47065024,47065024,0]
["","116","Миротворческие силы",47065024,47065024,0]
["0500","","ПРАВООХРАНИТЕЛЬНАЯ ДЕЯТЕЛЬНОСТЬ И ОБЕСПЕЧ. БЕЗОПАСНОСТИ ГОС-ВА",721686932,719998094,-1688838]
["0501","","Органы внутренних дел",311871631,310155197,-1716434]
["","117","Министерство внутренних дел ПМР",311871631,310155197,-1716434]
["0503","","Органы, исполняющие наказания и судебные решения",118699730,118727326,27596]
["","137","ГС судебных исполнителей МЮ ПМР",7732059,7759655,27596]
["","138","ГС исполнения наказаний МЮ ПМР",110967671,110967671,0]
["0505","","Органы государственной безопасности",125571927,125571927,0]
["","118","Министерство государственной безопасности ПМР",125571927,125571927,0]
["0507","","Следственные органы",22764727,22764727,0]
["","135","Следственный комитет ПМР",22764727,22764727,0]
["0508","","Прокуратура ПМР и ее территориальные органы",26270591,26270591,0]
["","108","Прокуратура ПМР",26270591,26270591,0]
["0509","","Надзорные органы",9195587,9195587,0]
["","151","Служба государственного надзора МЮ ПМР",9195587,9195587,0]
["0511","","Таможенные органы ПМР",64716115,64716115,{"$f":"E81-D81","v":0}]
["","134","Государственный таможенный комитет ПМР",64716115,64716115,0]
["0513","","Органы и учреждения, не отн. к др. гр.",42596624,42596624,0]
["","141","Государственная служба охраны ПМР",42596624,42596624,0]
["0600","","ФУНДАМЕНТАЛЬНЫЕ ИССЛЕДОВАНИЯ И СОДЕЙСТВИЕ НТП",14130394,14130394,0]
["0602","","Прикладные научные исследования",2356403,2356403,0]
["","120","Министерство с/х и природных ресурсов (НИУ)",1503972,1503972,0]
["","146","ГС экологического контроля и охраны ок. среды ПМР (наука)",852431,852431,0]
["0604","","Учр. и меропр. в области науч. иссл., не отн. к др. гр.",11773991,11773991,0]
["","113","Министерство здравоохранения  ПМР",502252,502252,0]
["","114","Министерство просвещения ПМР",1568934,1568934,0]
["","117","Министерство внутренних дел ПМР (госзаказ НИОКР)",221652,221652,0]
[null,"119","Министерство иностранных дел ПМР (госзаказ НИОКР)",1507820,1507820,0]
["","120","Министерство сельского хозяйства и природных ресурсов ПМР",7494550,7494550,0]
["","136","ПГУ им. Т. Г. Шевченко (Центр российского образования и науки)",365042,365042,0]
[null,"157","Министерство цифрового развития, связи  и массовых коммуникаций ПМР",113741,113741,0]
["0700","","ПРОМЫШЛЕННОСТЬ, ЭНЕРГЕТИКА И СТРОИТЕЛЬСТВО",200531662,210819581,10287919]
["0706","","Электростанции",1310018,1310018,0]
["","109","Гос. поддержка производителей электроэнергии",1310018,1310018,0]
["0707","","Деят-ность и усл. в обл. пром-ти, энер-ки и строит-ва., не отн. к др. гр.",199221644,209509563,10287919]
["","109","Компенсация разницы в тарифах",199221644,209509563,10287919]
["0800","","СЕЛЬСКОЕ ХОЗЯЙСТВО",4540727,4540727,0]
["0805","","Деят-сть и усл. в области сельского хоз-ва, не отн. к др. гр.",4540727,4540727,0]
["","120","Мин-во с/х и прир. рес. (РЦ ВСиФСБ)",4540727,4540727,0]
["0900","","ОХРАНА ОКРУЖ. СРЕДЫ, ГИДРОМЕТЕОРОЛОГИЯ, ЛЕСНОЕ, РЫБНОЕ И ВОДНОЕ ХОЗ-ВО",15204028,15204028,0]
["0902","","Лесное хозяйство",8765811,8765811,0]
["","146","ГС экологического контроля и охраны окр. среды ПМР (ГУП \"Приднестровье-лес\")",8765811,8765811,0]
["0904","","Охрана окружающей среды",1468050,1468050,0]
["","146","ГС экологического контроля и охраны окр. среды ПМР (госзаказ)",1468050,1468050,0]
["0905","","Гидрометеорология",4970167,4970167,0]
["","120","Мин-во с/х и прир. рес. (Республиканский  ГМЦ)",4970167,4970167,0]
["1000","","ТРАНСПОРТ, ДОРОЖНОЕ ХОЗЯЙСТВО, СВЯЗЬ И ИНФОРМАТИКА",32819952,32819952,0]
["1001","","Автомобильный транспорт и электротранспорт",8439238,8439238,0]
["","109","Возмещение льгот по транспорту",6033387,6033387,0]
["","109","Субсидирование социально значимых маршрутов",2405851,2405851,0]
["1007","","Связь",19115094,19115094,0]
[null,"157","Министерство цифрового развития, связи и массовых коммуникаций (почты)",19115094,19115094,0]
["1008","","Информатика",4099018,4099018,0]
[null,"109","Министерство экономического развития ПМР",593821,593821,0]
[null,"157","Министерство цифрового развития, связи и массовой коммуникации ПМР",3505197,3505197,0]
["1010","","Расходы в обл. тр-та, дор. хоз-ва, связи и информатики",1166602,1166602,0]
["","157","Министерство цифрового развития, связи и массовых коммуникаций (лиценз. сбор)",1166602,1166602,0]
["1300","","ОБРАЗОВАНИЕ",415355260,415354338,-922]
["1303","","Среднее образование",86930859,86929937,-922]
["","110","Общеобразовательные школы-интернаты",27955494,27954572,-922]
["","110","Спецшколы-интернаты",46097161,46097161,0]
["","114","Общеобразовательные школы",12878204,12878204,0]
["1304","","Специальное образование",129661955,129661955,0]
["","113","Техникумы и колледжи системы здравоохранения",11898945,11898945,0]
["","114","Техникумы и колледжи системы просвещения",103264593,103264593,0]
["","140","ГОУ СПО \"Училище олимпийского резерва\"",14498417,14498417,0]
["1305","","Высшее образование",182387385,182387385,0]
["","113","Техникумы и колледжи системы здравоохранения",5774693,5774693,0]
["","114","Техникумы и колледжи системы просвещения",592873,592873,0]
["","136","Университет",154781032,154781032,0]
["","142","Высшие колледжи ГС КиИН",21238787,21238787,0]
["1307","","Курсы и учреждения по повышению квалификации",5201373,5201373,0]
["","114","ГИПК (курсы и учреждения по повышению квалификации)",5201373,5201373,0]
["1308","","Детские дома, детские дома семейного типа",9131310,9131310,0]
["","110","Детский дом",9131310,9131310,0]
["1309","","Учрежд. и меропр. в области образования, не отн. к др. гр.",2042378,2042378,0]
["","110","Мероприятия по охране прав детства и защите прав сирот",35127,35127,0]
["","114","Центр экспертизы качества образования",1109703,1109703,0]
["","114","Прочие мероприятия в области образования",897548,897548,0]
["1400","","КУЛЬТУРА, ИСКУССТВО, КИНЕМАТОГРАФИЯ",30348701,30348701,{"$f":"E145-D145","v":0}]
["1402","","Деятельность в области культуры и искусства",17160715,17160715,0]
["","142","Музеи и выставки ГС КиИН",1269740,1269740,0]
["","142","Дворцы и дома культуры, клубы и др. учр-я ГС КиИН",10773490,10773490,0]
["","142","Приднестровский гос. театр драмы и комедии им. Н. С. Аронецкой ГС КиИН",5117485,5117485,0]
["1403","","Спорт и мероприятия для молодежи",272553,272553,0]
["","114","Мероприятия для молодежи",157573,157573,0]
["","140","Мероприятия по спорту",114980,114980,0]
["1404","","Учр. и меропр. в обл. культ., искус., религии, спорта, не отн. к др. гр.",12915433,12915433,0]
["","110","Респ. спорт.-реаб. центр инвалидов",4647779,4647779,0]
["","140","СДЮШОР",4824875,4824875,0]
["","140","РЦОП",2899636,2899636,0]
["","142","Центр национальных культур Приднестровья",269292,269292,0]
["","142","Прочие мероприятия по культуре и искусству ГС КиИН",273851,273851,0]
["","","СРЕДСТВА МАССОВОЙ ИНФОРМАЦИИ",43172852,43172852,0]
["1501","","Телевидение и радиовещание",33463599,33463599,0]
[null,"157","Министерство цифрового развития, связи и массовых коммуникаций (ПГТРК)",28367629,28367629,0]
["","157","Министерство цифрового развития, связи и массовых коммуникаций (ретрансляция)",5095970,5095970,0]
["1502","","Периодическая печать и издательства",9245784,9245784,0]
["","109","ГИИЦ",253462,253462,0]
["","157","Министерство цифрового развития, связи и массовых коммуникаций (газета)",8992322,8992322,0]
["1503","","Прочие средства массовой информации",463469,463469,0]
[null,"115","Министерство юстиции ПМР, ГУ \"Юридическая литература\"",463469,463469,0]
["1600","","ЗДРАВООХРАНЕНИЕ",990670758,990660516,-10242]
["1601","","Больницы",763255323,763274161,18838]
["","113","Больницы",763255323,763274161,18838]
["1602","","Поликлиники, амбулатории и фельдшерско-акушерские пункты",165020572,165060023,39451]
["","113","Поликлиники и амбулатории",113903422,113868800,-34622]
["","113","Станции скорой медицинской помощи",51117150,51191223,74073]
["1603","","Санитарно-эпидемиологические профилактич. службы и учрежд.",28083969,28015438,-68531]
["","110","Дом ребенка",8472424,8472424,0]
["","113","Мероприятия по борьбе с эпидемиями",19611545,19543014,-68531]
["1604","","Мед., протезы и продукц., исп. в мед. практике по предписанию врача",29676176,29676176,0]
["","113","Медикаменты, протезы и продукция, использ. по предписан. врача",29676176,29676176,0]
["1605","","Учр. и услуги в области здравоохранения, не отн. к др. гр.",4634718,4634718,0]
["","113","Консилиумы врачебной экспертизы жизнеспособности",4634718,4634718,0]
["1700","","СОЦИАЛЬНАЯ ПОЛИТИКА",765820508,794555508,28735000]
["1701","","Пенсии военнослужащим",97555642,104083842,6528200]
["1702","","Пенсии и пособия работн. органов судебной власти и прокурат.",17737351,17894151,156800]
["1703","","Учреждения социального обеспечения",44203139,44203139,0]
["","110","Дома-интернаты для малолетних инвалидов",7685096,7685096,0]
["","110","Дома-интернаты для престарелых и инвалидов",35300574,35300574,0]
["","110","Республиканский центр по протезированию и ортопедии",1217469,1217469,0]
["1704","","Пенсии и пособия, возмещаемые из бюджета",225391829,219391829,-6000000]
["","110","Пенсии и пособия, возмещаемые  из бюджета",225391829,219391829,-6000000]
["1706","","Поэтапная индексация вкладов населения",17500000,17500000,0]
["","150","Индексация вкладов населения",17500000,17500000,0]
["1707","","Индексация страх. взносов населения по долгоср. договорам добровольн. страх.",15000,15000,0]
["","150","Индексация страховых взносов населения",15000,15000,0]
["1709","","Повышение пенсий за особые заслуги перед гос-вом",9336120,9336120,0]
["","110","Повышение пенсий за особые заслуги",9336120,9336120,0]
["1711","","Учрежд. и усл. в обл. соц. обесп. и соц. поддержки, не отн. к др. гр.",158368935,186418935,28050000]
["","101","Выплаты и гарантии бывшим руковод. должн. лицам (ВС)",1223375,1223375,0]
["","102","Выплаты и гарантии бывшим руковод. должн. лицам (АП)",1139044,1139044,0]
["","110","Учр-я и услуги в области соц. обеспеч., не отн. к др. гр.",67972391,96022391,28050000]
["","110","Возмещение вреда по трудовому увечью",349939,349939,0]
["","110","Гос. пособия гражданам, имеющим детей",81509010,81509010,0]
["","110","Выплата компенс. гр-нам, участ. ликв. аварии на ЧАЭС",5311688,5311688,0]
["","141","Государственная служба охраны",863488,863488,0]
["1712","","Льготы отдельным категориям населения на ЖКУ",195712492,195712492,0]
["","109","МЭР (возмещение льгот по коммунальным услугам)",168450297,168450297,0]
["","156","ГА Бендер (возмещение льгот на ЖКУ)",15223838,15223838,0]
["","156","ГА Григориополя (возмещение льгот на ЖКУ)",315064,315064,0]
["","156","ГА Днестровска  (возмещение льгот на ЖКУ)",231193,231193,0]
["","156","ГА Дубоссар  (возмещение льгот на ЖКУ)",531025,531025,{"$f":"E209-D209","v":0}]
["","156","ГА Каменки  (возмещение льгот на ЖКУ)",147029,147029,0]
["","156","ГА Рыбницы  (возмещение льгот на ЖКУ)",998189,998189,0]
["","156","ГА Слободзеи  (возмещение льгот на ЖКУ)",668224,668224,0]
[null,"156","ГА Тирасполя  (возмещение льгот на ЖКУ)",3316498,3316498,0]
["","157","Министерство цифрового развития, связи и массовых коммуникаций (возмещение льготы по усл. связи)",5831135,5831135,0]
["2000","","ФИНАНСОВАЯ ПОМОЩЬ БЮДЖЕТАМ ДРУГИХ УРОВНЕЙ",780940751,783811584,2870833]
["2001","","Финансовая помощь бюджетам других уровней",780940751,783811584,2870833]
["","109","Трансферты на покрытие разницы в ценах и тарифах на ЖКУ",3930948,3930948,0]
["","150","Трансферты, выделяемые из бюджета бюджетам других уровней",777009803,779880636,2870833]
["3000","","ПРОЧИЕ РАСХОДЫ",509351099,620272007,110920908]
["3001","","Резервный фонд Президента ПМР",11138577,8817744,-2320833]
["","130","Резервный фонд Президента ПМР",11138577,8817744,-2320833]
["3005","","Проведение выборов и референдумов",13959019,13959019,0]
["","112","Центральная избирательная комиссия ПМР",1878523,1878523,0]
[null,"112","Проведение выборов депутатов ВС ПМР, народных депутатов местных СНД, председателей Советов – глав администраций сел, поселков",12080496,12080496,0]
["3007","","Расходы, не отнесенные к другим группам",414310311,528102052,113791741]
["","102","Обеспечение миротворческой деятельности",7500000,7500000,0]
["","109","Услуги по строительному контролю и техническому надзору",1084210,1084210,0]
["","109","Субсидии с/х производителям",7032635,7032635,0]
["","109","Бюджетное кредитование",148698385,148698385,0]
[null,"110","Мероприятия по оснащению рабочими тетрадями",69429,69429,0]
[null,113,"Мероприятия, направл. на развитие (обновление) МТБ учреждений здравоохранения",4684345,4684345,0]
[null,"114","Мероприятия по оснащению рабочими тетрадями",5207,0,-5207]
[null,"114","Мероприятия по обновлению учебн. фондов организаций общего образования",0,5207,5207]
[null,147,"Субсидии на содержание и благоустройство ИВМК \"Бендерская крепость\" и парка им. А. Невского (ГА Бендер)",0,0,0]
["","150","Субсидии на осуществление программы \"Столица\"",509352,260011,-249341]
["","150","Создание и модернизация информац. ресурсов в сфере налогообложения и бюджетного процесса",260011,509352,249341]
[null,"150","Целевые субсидии в соответствии с частью второй пункта 3 статьи 4 настоящего Закона",10000000,10000000,0]
[null,"150","Беспроцент.займ ЕГФСС на покр.дефицита",null,113791741,113791741]
[null,"157","Мероприятия по внедрению автоматизированного государственного земельного кадастра",562128,562128,0]
[null,null,"Расходы от оказания платных услуг",233904609,233904609,0]
["","109","Расходы от оказ. плат. усл. (Минэкономразвития, ГИИЦ)",125750,125750,0]
["","110","Расходы от оказ. плат. усл. (Мин-во СЗиТ, соц. патронаж)",2458302,2458302,0]
["","113","Расходы от оказ. плат. усл. (Минздрав, медколледжи)",4381164,4381164,0]
["","113","Расходы от оказ. плат. усл. (Минздрав, больницы)",37873414,37873414,0]
["","113","Расходы от оказ. плат. усл. (Минздрав, поликлиники)",29347400,29347400,0]
["","113","Расходы от оказ. плат. усл. (Минздрав, СЭС)",8856534,8856534,0]
["","114","Расходы от оказ. плат. усл. (Минпрос, образование)",8807960,8807960,0]
["","115","Расходы от оказ. плат. усл. (Минюст, ГУ \"Юридич. литер-ра\")",547674,547674,0]
["","117","Расходы от оказ. плат. усл. (МВД)",53486261,53486261,0]
["","120","Расходы от оказ. плат. усл. (Мин. с/х и прир. рес., наука)",289215,289215,0]
["","120","Расходы от оказ. плат. усл. (Мин. с/х и прир. рес., ГУ \"РЦ ВСиФСБ\")",24088760,24088760,0]
["","120","Расходы от оказ. плат. усл. (Мин. с/х и прир. рес., ГМЦ)",194920,194920,0]
["","124","Расходы от оказ. плат. усл. (ГУ ЦКОМФП)",3189164,3189164,0]
["","136","Расходы от оказ. плат. усл. (по госзаказу ПГУ)",3914399,3914399,0]
["","136","Расходы от оказ. плат. усл. (ПГУ)",36172539,36172539,0]
["","137","Расходы от оказ. плат. усл. (ГС СИ МЮ)",2000092,2000092,0]
["","138","Расходы от оказ. плат. усл. (ГС ИН)",11356063,11356063,0]
["","140","Расходы от оказ. плат. усл. (ГС по спорту)",42054,42054,0]
["","142","Расходы от оказ. плат. усл. (ГС КиИН, ГОУ)",610135,610135,0]
["","142","Расходы от оказ. плат. усл. (ГС КиИН, культура и искусство)",1430515,1430515,0]
["","142","Расходы от оказ. плат. усл. (ГС КиИН, театр)",1925000,1925000,0]
["","145","Расходы от оказ. плат. усл. (ГУ \"Архивы Приднестровья\")",825000,825000,0]
[null,"157","Расходы от оказ. плат. усл. (ПГТРК)",1273428,1273428,0]
["","157","Расходы от оказ. плат. усл. (газета)",708866,708866,0]
["3008","","Целевые программы",47732199,47732199,0]
["","109","ГП разгосударствления и приватизации",573500,1073906,500406]
["","109","ГЦП \"Замена свет. авто. дорог общего пользования ПМР, наход. в гос. и муниц. собствен.\"",1073906,573500,-500406]
["","110","ГЦП \"Обеспечение жильем детей-сирот\"",7001255,7001255,0]
["","110","ГЦП \"Льготное кред. инвалидов общего заболевания, инвалидов по зрению\"",35000,35000,0]
[null,"113","ГЦП \"Профилактика и лечение сердечно-сосудистых заболеваний\"",1826810,1826810,0]
["","113","ГЦП \"Онкология\"",26212733,26212733,0]
["","113","ГЦП \"Иммунизация населения ПМР\"",4119181,4119181,0]
["","113","ГЦП \"Профилактика туберкулеза\"",2365065,2365065,{"$f":"E273-D273","v":0}]
["","114","ГЦП \"Учебник\"",0,0,0]
[null,"117","ГЦП \"Переоснащение служебного автотранспорта пожарной охраны\"",0,0,0]
[null,"120","ГЦП развития минерально-сырьевой базы ПМР",922130,922130,0]
[null,147,"ГЦП Сохран. недвижимых объектов культурного наследия",1475668,1475668,0]
["","155","ГП \"Исполнение наказов избирателей\"",2126951,2126951,0]
["3009","","Резервный фонд Правительства ПМР",19404785,18854785,-550000]
["","126","Резервный фонд Правительства ПМР",19404785,18854785,-550000]
["3010","","Фонд поддержки территорий городов и районов",2806208,2806208,0]
["","150","Фонд поддержки территорий городов и районов",2806208,2806208,0]
["3200","","ЦЕЛЕВЫЕ БЮДЖЕТНЫЕ ФОНДЫ",415980682,415980682,0]
["3201","","Дорожный фонд ПМР",164545126,164545126,0]
["","131","Целевые субсидии  ГА  города Тирасполя",2002069,2002069,0]
["","131","Целевые субсидии  ГА Рыбницкого района и города Рыбницы",3232409,3232409,0]
["","131","Целевые субсидии ГА города Бендеры",6214376,6214376,0]
["","131","Целевые субсидии ГА Григориопольского района и города Григориополя",1361250,1361250,0]
["","131","Целевые субсидии ГА Дубоссарского района и  города Дубоссары",361772,361772,0]
["","131","Целевые субсидии ГА Слободзейского района и города Слободзеи",2885713,2885713,0]
["","131","Целевые субсидии ГА Каменского района и города Каменки",2272596,2272596,0]
["","131","МЭР  (мостовые сооружения)",800000,800000,0]
["","131","МЭР  (уличное освещение)",19402020,21981669,2579649]
["","131","Субсидии  на развитие дорожного хозяйства",126012921,123433272,-2579649]
["3202","","Республиканский экологический фонд ПМР",4492292,4492292,0]
["","127","Республиканский экологический фонд ПМР",4492292,4492292,0]
["3206","","Фонд по обеспеч. гос. гарантий гр-м, имеющим право на зем. долю (пай)",30717531,30717531,0]
["","120","Фонд по обесп. гос. гарантий гр-м, имеющим право на зем. долю",25930036,25930036,0]
[null,"147","Фонд по обесп. гос. гарантий гр-м, имеющим право на зем. долю",4787495,4787495,0]
["3207","","Фонд капитальных вложений",136380669,136380669,0]
["","133","Фонд капитальных вложений",136380669,136380669,0]
["3208","","Фонд  развития предпринимательства",18411164,18411164,0]
["","147","Фонд  развития предпринимательства",18411164,18411164,0]
["3209","","Фонд поддержки молодежи",4684018,4684018,0]
["","147","Фонд поддержки молодежи",4684018,4684018,0]
["3211","","Фонд поддержки сельского хозяйства",9114253,9114253,0]
["","120","Фонд поддержки сельского хозяйства",9114253,9114253,0]
["3212","","Фонд развития мелиоративного комплекса",47635629,47635629,0]
["","120","Фонд развития мелиоративного комплекса",47635629,47635629,0]
["","","ИТОГО",5561012082,5712108740,151096658]